bitfinex/quotes_SOLUSD_20241028
["timestamp","ask_amount","ask_price","bid_price","bid_amount"]
[1730147004179,5.676,176.18,176.12,11.14989918]
[1730147004388,15.1788,176.19,176.14,11.14989918]
[1730147004685,15.1788,176.19,176.16,11.14989918]
[1730147005492,5.6748,176.22,176.17,11.14989918]
[1730147005670,5.6744,176.23,176.18,11.14989918]
[1730147006190,16.82429918,176.23,176.17,11.14989918]
[1730147006576,16.82429918,176.23,176.16,11.14989918]
[1730147006787,23.776884,176.22,176.16,11.14989918]
[1730147009188,23.776884,176.22,176.17,11.14989918]
[1730147009611,23.776884,176.22,176.18,11.14989918]
[1730147012496,23.776884,176.22,176.17,11.14989918]
[1730147012676,23.776884,176.22,176.16,11.14989918]
[1730147013782,23.776884,176.2,176.12,1.3736]
[1730147013990,23.776884,176.2,176.16,11.14989918]
[1730147014188,23.776884,176.21,176.17,11.14989918]
[1730147015882,23.776884,176.21,176.19,11.14989918]
[1730147016389,23.776884,176.21,176.2,11.14989918]
[1730147017495,16.0224,176.25,176.2,11.14989918]
[1730147017701,16.0224,176.25,176.23,11.14989918]
[1730147018899,23.776884,176.24,176.14,9.39677283]
[1730147019287,15.345,176.29,176.16,0.1]
[1730147019588,15.345,176.29,176.25,11.14989918]
[1730147020369,23.776884,176.28,176.25,11.14989918]
[1730147025184,23.776884,176.28,176.26,11.14989918]
[1730147026277,23.776884,176.28,176.25,11.14989918]
[1730147030411,29.449684,176.28,176.24,11.14989918]
[1730147030998,29.449684,176.28,176.25,11.14989918]
[1730147033006,29.449684,176.28,176.24,11.14989918]
[1730147035708,29.449684,176.28,176.26,11.14989918]
[1730147037091,23.776884,176.28,176.26,11.14989918]
[1730147037299,70.0,176.34,176.18,1.3736]
[1730147037300,70.0,176.36,176.27,11.14989918]
[1730147037507,11.14989918,176.33,176.22,44.59959672]
[1730147037808,11.14989918,176.31,176.25,11.14989918]
[1730147038910,5.6724,176.29,176.25,11.14989918]
[1730147039290,5.6724,176.29,176.26,11.14989918]
[1730147039291,23.776884,176.28,176.26,11.14989918]
[1730147040307,23.776884,176.28,176.27,11.14989918]
[1730147040513,11.14989918,176.33,176.22,9.19677283]
[1730147040688,5.6715,176.32,176.27,11.14989918]
[1730147041296,5.6715,176.32,176.28,11.14989918]
[1730147042113,23.776884,176.31,176.28,11.14989918]
[1730147043617,23.776884,176.31,176.29,11.14989918]
[1730147045410,23.776884,176.31,176.28,11.14989918]
[1730147046209,23.776884,176.3,176.25,11.14989918]
[1730147046792,29.448984,176.3,176.26,11.14989918]
[1730147047384,29.448984,176.3,176.28,11.14989918]
[1730147047385,23.776884,176.3,176.28,11.14989918]
[1730147047590,15.7351,176.34,176.29,11.14989918]
[1730147047821,5.6698,176.37,176.32,11.14989918]
[1730147048107,21.4856,176.38,176.33,11.14989918]
[1730147048299,21.4856,176.38,176.25,1.3736]
[1730147048300,15.0786,176.38,176.35,11.14989918]
[1730147048509,15.0786,176.38,176.36,11.14989918]
[1730147049213,15.0786,176.38,176.35,11.14989918]
[1730147049419,15.0786,176.38,176.25,9.70370616]
[1730147049715,20.7482,176.38,176.34,11.14989918]
[1730147049922,23.776884,176.37,176.34,11.14989918]
[1730147052912,23.776884,176.37,176.36,11.14989918]
[1730147054891,23.776884,176.37,176.31,44.59959672]
[1730147054892,23.776884,176.37,176.35,11.14989918]
[1730147055312,23.776884,176.37,176.34,11.14989918]
[1730147055504,23.776884,176.38,176.34,11.14989918]
[1730147055701,11.14989918,176.4,176.33,11.14989918]
[1730147055702,23.776884,176.39,176.33,11.14989918]
[1730147055919,23.776884,176.39,176.34,11.14989918]
[1730147056491,23.776884,176.39,176.26,0.2]
[1730147056696,23.776884,176.39,176.36,11.14989918]
[1730147057426,29.446084,176.39,176.34,11.14989918]
[1730147059606,29.446084,176.39,176.35,11.14989918]
[1730147060523,29.446084,176.39,176.36,11.14989918]
[1730147061517,23.776884,176.39,176.37,11.14989918]
[1730147061835,29.446184,176.39,176.35,11.14989918]
[1730147062231,29.446184,176.39,176.36,11.14989918]
[1730147062714,29.446184,176.39,176.35,11.14989918]
[1730147064109,29.446184,176.39,176.34,11.14989918]
[1730147064804,29.446184,176.39,176.35,11.14989918]
[1730147067419,23.776884,176.39,176.35,11.14989918]
[1730147068032,23.776884,176.39,176.34,11.14989918]
[1730147068238,34.92678318,176.38,176.25,7.8168]
[1730147068418,34.92678318,176.36,176.3,11.14989918]
[1730147068939,23.776884,176.36,176.3,11.14989918]
[1730147069537,29.447284,176.36,176.3,11.14989918]
[1730147069748,29.447284,176.36,176.31,11.14989918]
[1730147070718,40.59718318,176.36,176.3,11.14989918]
[1730147070919,29.447284,176.36,176.31,11.14989918]
[1730147071118,23.776884,176.36,176.31,11.14989918]
[1730147071439,23.776884,176.36,176.33,11.14989918]
[1730147072239,23.776884,176.36,176.34,11.14989918]
[1730147072441,23.776884,176.36,176.35,11.14989918]
[1730147072821,5.6692,176.39,176.35,11.14989918]
[1730147073926,25.669,176.4,176.35,11.14989918]
[1730147074127,23.776884,176.39,176.35,11.14989918]
[1730147075131,23.776884,176.39,176.31,44.59959672]
[1730147075132,23.776884,176.39,176.36,11.14989918]
[1730147076138,23.776884,176.39,176.35,11.14989918]
[1730147076530,23.776884,176.39,176.36,11.14989918]
[1730147077750,23.776884,176.4,176.36,11.14989918]
[1730147078841,29.445884,176.4,176.36,11.14989918]
[1730147080432,23.776884,176.41,176.38,11.14989918]
[1730147081855,23.776884,176.41,176.39,11.14989918]
[1730147083062,23.776884,176.41,176.38,11.14989918]
[1730147085561,29.445484,176.41,176.38,11.14989918]
[1730147086254,29.445484,176.41,176.37,11.14989918]
[1730147086832,28.945484,176.41,176.37,11.14989918]
[1730147087038,11.14989918,176.43,176.37,11.14989918]
[1730147087246,20.0,176.42,176.37,11.14989918]
[1730147087445,5.6686,176.41,176.37,11.14989918]
[1730147088857,23.776884,176.4,176.38,11.14989918]
[1730147089171,23.776884,176.41,176.38,11.14989918]
[1730147089846,23.776884,176.41,176.4,11.14989918]
[1730147093161,23.776884,176.41,176.39,11.14989918]
[1730147093468,23.776884,176.41,176.38,11.14989918]
[1730147093673,23.776884,176.4,176.32,1.3736]
[1730147093853,23.776884,176.4,176.36,11.14989918]
[1730147094373,23.776884,176.4,176.35,11.14989918]
[1730147094955,23.776884,176.4,176.36,11.14989918]
[1730147095372,23.776884,176.4,176.37,11.14989918]
[1730147098887,23.776884,176.39,176.34,11.14989918]
[1730147100475,23.776884,176.4,176.34,11.14989918]
[1730147100676,29.445784,176.4,176.35,11.14989918]
[1730147103187,29.445784,176.4,176.36,11.14989918]
[1730147104367,29.445784,176.4,176.29,8.33010616]
[1730147104679,29.445784,176.4,176.35,11.14989918]
[1730147105972,29.445784,176.4,176.31,44.59959672]
[1730147106177,29.445784,176.4,176.27,9.70370616]
[1730147106376,29.445784,176.4,176.35,11.14989918]
[1730147107881,23.776884,176.38,176.27,9.70370616]
[1730147108187,23.776884,176.38,176.34,11.14989918]
[1730147111092,29.446484,176.38,176.34,11.14989918]
[1730147111390,29.446484,176.38,176.27,9.70370616]
[1730147111586,29.446484,176.38,176.33,11.14989918]
[1730147111795,29.446484,176.38,176.27,9.70370616]
[1730147111796,23.776884,176.38,176.34,11.14989918]
[1730147116190,29.446384,176.38,176.33,11.14989918]
[1730147119681,29.446384,176.38,176.32,11.14989918]
[1730147120077,40.59628318,176.38,176.27,9.70370616]
[1730147120395,40.59628318,176.38,176.32,11.14989918]
[1730147120588,29.446384,176.38,176.33,11.14989918]
[1730147120789,23.776884,176.38,176.34,11.14989918]
[1730147123398,20.0,176.43,176.37,11.14989918]
[1730147123696,20.0,176.43,176.38,11.14989918]
[1730147124286,25.6679,176.43,176.38,11.14989918]
[1730147124972,25.6679,176.43,176.31,44.59959672]
[1730147124973,23.776884,176.42,176.37,11.14989918]
[1730147126593,40.59518318,176.42,176.36,11.14989918]
[1730147127782,29.445284,176.42,176.37,11.14989918]
[1730147127981,23.776884,176.42,176.37,11.14989918]
[1730147128380,23.776884,176.42,176.38,11.14989918]
[1730147128780,23.776884,176.42,176.37,11.14989918]
[1730147130685,34.92678318,176.42,176.36,11.14989918]
[1730147131604,34.92678318,176.42,176.39,0.63973027]
[1730147131897,23.776884,176.42,176.4,6.52667754]
[1730147132095,23.776884,176.42,176.41,6.52667754]
[1730147132481,23.776884,176.42,176.41,3.68899165]
[1730147137704,23.776884,176.43,176.41,6.52646365]
[1730147138003,23.776884,176.43,176.42,7.16612231]
[1730147138884,23.776884,176.43,176.42,6.52646365]
[1730147139683,23.776884,176.43,176.42,3.68891052]
[1730147140200,50.767584,176.43,176.42,3.68891052]
[1730147140586,61.91748318,176.43,176.42,3.68891052]
[1730147142205,50.767584,176.43,176.42,7.37726324]
[1730147142584,61.91748318,176.43,176.42,7.37726324]
[1730147145009,61.91748318,176.43,176.42,3.68863162]
[1730147145210,61.91748318,176.43,176.42,7.37725178]
[1730147147612,61.91748318,176.43,176.42,5.10733168]
[1730147148003,50.767584,176.43,176.42,5.10733168]
[1730147148192,61.91748318,176.43,176.42,5.10733168]
[1730147149189,50.767584,176.43,176.42,5.10733776]
[1730147149390,44.707084,176.43,176.42,5.10733776]
[1730147149695,44.707084,176.43,176.42,1.41870614]
[1730147150599,44.707084,176.43,176.37,11.14989918]
[1730147150799,44.707084,176.43,176.38,1.41870648]
[1730147151003,44.707084,176.43,176.39,1.41870648]
[1730147151206,44.707084,176.43,176.4,1.41870648]
[1730147151403,44.707084,176.43,176.41,1.41870648]
[1730147151712,44.707084,176.43,176.37,11.14989918]
[1730147152014,44.707084,176.43,176.38,1.41871234]
[1730147152215,44.707084,176.43,176.39,1.41871234]
[1730147152414,44.707084,176.43,176.4,1.41871234]
[1730147152819,44.707084,176.43,176.41,1.41871234]
[1730147152989,44.707084,176.43,176.37,11.14989918]
[1730147153189,44.707084,176.43,176.38,1.41870062]
[1730147153415,44.707084,176.43,176.37,11.14989918]
[1730147153416,44.707084,176.43,176.39,1.41870062]
[1730147153719,44.707084,176.43,176.4,1.41870062]
[1730147153905,44.707084,176.43,176.41,1.41870062]
[1730147154212,44.707084,176.43,176.37,11.14989918]
[1730147154514,44.707084,176.43,176.38,1.41870062]
[1730147154818,44.707084,176.43,176.39,1.41870062]
[1730147154992,44.707084,176.43,176.4,1.41870062]
[1730147155194,44.707084,176.43,176.41,1.41870062]
[1730147155393,44.707084,176.43,176.37,11.14989918]
[1730147155594,44.707084,176.43,176.38,1.41870418]
[1730147155897,44.707084,176.43,176.39,1.41870418]
[1730147156111,44.707084,176.43,176.4,1.41870418]
[1730147156304,44.707084,176.43,176.37,11.14989918]
[1730147156512,44.707084,176.43,176.38,1.41870573]
[1730147156816,44.707084,176.43,176.39,1.41870573]
[1730147157009,44.707084,176.43,176.4,1.41870573]
[1730147157208,44.707084,176.43,176.41,1.41870573]
[1730147157408,44.707084,176.43,176.37,11.14989918]
[1730147157612,44.707084,176.43,176.38,1.41869894]
[1730147157815,44.707084,176.43,176.39,1.41869894]
[1730147158006,55.85698318,176.43,176.4,1.41869894]
[1730147158203,55.85698318,176.43,176.41,1.41869894]
[1730147158519,55.85698318,176.43,176.36,11.14989918]
[1730147158721,55.85698318,176.43,176.37,1.41870085]
[1730147158921,55.85698318,176.43,176.38,1.41870085]
[1730147159100,55.85698318,176.43,176.39,1.41870085]
[1730147159298,44.707084,176.43,176.4,1.41870085]
[1730147159511,93.776884,176.4,176.28,1.3736]
[1730147159811,23.776884,176.35,176.31,11.14989918]
[1730147160119,23.776884,176.35,176.32,1.41889174]
[1730147160324,23.776884,176.35,176.33,1.41889174]
[1730147160522,23.776884,176.35,176.34,1.41889174]
[1730147161925,23.776884,176.35,176.3,11.14989918]
[1730147164538,20.0,176.4,176.34,11.14989918]
[1730147164713,31.14989918,176.4,176.34,11.14989918]
[1730147165509,31.14989918,176.4,176.33,11.14989918]
[1730147165706,16.81909918,176.39,176.33,11.14989918]
[1730147165922,23.776884,176.38,176.33,11.14989918]
[1730147166128,23.776884,176.38,176.32,11.14989918]
[1730147167528,23.776884,176.38,176.33,11.14989918]
[1730147169105,23.776884,176.36,176.3,11.14989918]
[1730147169321,34.92678318,176.36,176.3,11.14989918]
[1730147170140,23.776884,176.36,176.3,11.14989918]
[1730147170426,40.59698318,176.36,176.3,11.14989918]
[1730147171219,11.14989918,176.34,176.26,5.88312338]
[1730147171429,23.776884,176.31,176.26,17.03302256]
[1730147174832,23.776884,176.31,176.26,5.88312338]
[1730147175009,23.776884,176.29,176.26,5.88312338]
[1730147175429,34.92678318,176.29,176.26,5.88312338]
[1730147175636,34.92678318,176.27,176.26,5.88312338]
[1730147175930,34.92678318,176.27,176.21,11.14989918]
[1730147176721,23.776884,176.27,176.21,11.14989918]
[1730147177134,23.776884,176.26,176.21,11.14989918]
[1730147177521,34.92678318,176.27,176.21,11.14989918]
[1730147178124,23.776884,176.25,176.21,11.14989918]
[1730147178512,23.776884,176.26,176.21,11.14989918]
[1730147179323,23.776884,176.26,176.24,11.14989918]
[1730147179526,15.2401,176.33,176.25,11.14989918]
[1730147179845,15.2401,176.33,176.28,11.14989918]
[1730147180029,15.2401,176.33,176.27,11.14989918]
[1730147180217,26.38999918,176.33,176.27,11.14989918]
[1730147181817,23.776884,176.32,176.27,11.14989918]
[1730147182025,34.92678318,176.32,176.26,11.14989918]
[1730147182212,34.92678318,176.32,176.25,11.14989918]
[1730147183814,34.92678318,176.32,176.26,11.14989918]
[1730147184026,23.776884,176.32,176.27,11.14989918]
[1730147186437,34.92678318,176.32,176.26,11.14989918]
[1730147186741,23.776884,176.32,176.27,11.14989918]
[1730147189133,34.92678318,176.32,176.26,11.14989918]
[1730147194236,23.776884,176.32,176.26,11.14989918]
[1730147194461,70.0,176.17,176.04,0.1]
[1730147194756,23.776884,176.12,176.06,21.86974791]
[1730147194933,23.776884,176.12,176.06,11.14989918]
[1730147196122,23.776884,176.12,176.08,11.14989918]
[1730147198249,23.776884,176.12,176.1,11.14989918]
[1730147198454,23.776884,176.12,176.11,11.14989918]
[1730147198657,23.776884,176.12,176.09,11.14989918]
[1730147198857,23.776884,176.12,176.03,6.2436]
[1730147199160,23.776884,176.12,176.09,11.14989918]
[1730147201271,23.776884,176.12,176.1,11.14989918]
[1730147202342,23.776884,176.12,176.09,11.14989918]
[1730147202562,23.776884,176.12,176.1,11.14989918]
[1730147202759,23.776884,176.12,176.09,11.14989918]
[1730147202957,23.776884,176.12,176.03,6.1436]
[1730147202958,62.40118318,176.13,176.02,0.98315877]
[1730147203145,62.40118318,176.13,176.07,11.14989918]
[1730147204278,51.251284,176.13,176.08,11.14989918]
[1730147207555,45.573684,176.13,176.08,11.14989918]
[1730147208161,45.573684,176.13,176.04,44.59959672]
[1730147208373,39.542884,176.13,176.09,11.14989918]
[1730147211877,39.542884,176.13,176.08,11.14989918]
[1730147213959,50.69278318,176.13,176.08,11.14989918]
[1730147214590,39.542884,176.13,176.08,11.14989918]
[1730147215881,39.542884,176.13,176.09,11.14989918]
[1730147217279,39.542884,176.13,176.1,11.14989918]
[1730147218991,23.776884,176.13,176.11,11.14989918]
[1730147219359,23.776884,176.14,176.11,11.14989918]
[1730147220192,23.776884,176.14,176.04,44.69959672]
[1730147220369,23.776884,176.14,176.1,11.14989918]
[1730147220687,34.92678318,176.12,176.01,1.3736]
[1730147220861,34.92678318,176.12,176.06,11.14989918]
[1730147221580,23.776884,176.12,176.07,11.14989918]
[1730147222786,23.776884,176.12,176.01,1.4736]
[1730147222787,23.776884,176.12,176.01,1.3736]
[1730147222982,29.454784,176.12,176.07,11.14989918]
[1730147223789,40.60468318,176.12,176.06,11.14989918]
[1730147223992,11.14989918,176.11,176.05,11.14989918]
[1730147224191,23.776884,176.1,176.06,11.14989918]
[1730147224496,40.60468318,176.12,176.06,11.14989918]
[1730147224700,41.58758318,176.1,176.03,11.14989918]
[1730147225573,11.14989918,176.07,175.97,1.3736]
[1730147225789,23.776884,176.08,176.04,11.14989918]
[1730147225985,23.776884,176.09,176.05,11.14989918]
[1730147226799,23.776884,176.09,176.06,11.14989918]
[1730147226984,23.776884,176.09,176.07,11.14989918]
[1730147227593,23.776884,176.09,176.05,11.14989918]
[1730147228698,23.776884,176.09,176.04,11.14989918]
[1730147229374,23.776884,176.09,175.98,0.1]
[1730147229574,34.92678318,176.09,175.97,21.4736]
[1730147229981,34.92678318,176.09,176.03,11.14989918]
[1730147230401,23.776884,176.09,176.04,11.14989918]
[1730147233576,23.776884,176.09,176.03,11.14989918]
[1730147234683,23.776884,176.09,176.05,11.14989918]
[1730147236783,23.776884,176.09,176.04,11.14989918]
[1730147237102,29.455884,176.09,176.03,11.14989918]
[1730147237305,29.455884,176.09,176.04,11.14989918]
[1730147237610,29.455884,176.09,175.98,0.1]
[1730147237787,29.455884,176.09,176.04,11.14989918]
[1730147237993,23.776884,176.09,176.04,11.14989918]
[1730147243484,23.776884,176.09,176.05,11.14989918]
[1730147245391,23.776884,176.09,175.99,0.1]
[1730147245707,23.776884,176.09,176.04,11.14989918]
[1730147246488,23.776884,176.09,175.99,0.1]
[1730147246691,23.776884,176.09,176.04,11.14989918]
[1730147246891,23.776884,176.09,175.99,0.1]
[1730147247096,23.776884,176.09,176.04,11.14989918]
[1730147247611,23.776884,176.09,175.98,20.0]
[1730147247782,23.776884,176.09,176.04,11.14989918]
[1730147248584,23.776884,176.09,176.05,11.14989918]
[1730147249409,23.776884,176.09,176.04,11.14989918]
[1730147249787,38.916184,176.06,176.01,11.14989918]
[1730147250019,38.916184,176.06,176.05,11.14989918]
[1730147250213,23.776884,176.06,176.05,11.14989918]
[1730147253427,23.776884,176.06,176.04,11.14989918]
[1730147253625,23.776884,176.06,175.97,5.90807275]
[1730147253937,23.776884,176.07,176.02,11.14989918]
[1730147255027,23.776884,176.07,176.03,11.14989918]
[1730147256791,23.3166,176.1,176.06,11.14989918]
[1730147256792,93.3166,176.1,176.06,11.14989918]
[1730147257514,93.3166,176.1,176.07,11.14989918]
[1730147257717,16.6558,176.1,176.08,11.14989918]
[1730147259523,23.776884,176.09,176.08,11.14989918]
[1730147259816,23.776884,176.09,175.99,0.1]
[1730147260023,23.776884,176.09,175.97,0.1]
[1730147260331,23.776884,176.09,176.04,11.14989918]
[1730147261123,23.776884,176.09,176.05,11.14989918]
[1730147261301,23.776884,176.09,175.97,0.1]
[1730147261499,70.0,176.15,176.08,11.14989918]
[1730147261808,75.677,176.15,176.09,11.14989918]
[1730147262011,86.82689918,176.15,176.09,11.14989918]
[1730147263009,23.776884,176.14,176.09,11.14989918]
[1730147264537,29.454184,176.14,176.09,11.14989918]
[1730147264731,29.454184,176.14,176.08,11.14989918]
[1730147265822,23.776884,176.12,176.08,11.14989918]
[1730147266524,23.776884,176.12,176.09,11.14989918]
[1730147269719,23.776884,176.13,176.11,11.14989918]
[1730147270031,23.776884,176.14,176.11,11.14989918]
[1730147270608,23.776884,176.15,176.11,11.14989918]
[1730147271228,23.776884,176.15,176.12,11.14989918]
[1730147271531,70.0,176.17,176.14,11.14989918]
[1730147271825,75.6763,176.17,176.12,11.14989918]
[1730147272065,86.82619918,176.17,176.1,11.14989918]
[1730147272936,34.92678318,176.16,176.1,11.14989918]
[1730147273302,23.776884,176.16,176.1,11.14989918]
[1730147273912,40.60348318,176.16,176.1,11.14989918]
[1730147274811,40.60348318,176.16,175.99,5.88524538]
[1730147274812,93.776884,176.09,175.99,5.88524538]
[1730147275012,93.776884,176.09,176.04,11.14989918]
[1730147275230,23.776884,176.09,175.99,0.1]
[1730147276536,23.776884,176.09,176.06,11.14989918]
[1730147278632,23.776884,176.09,176.05,11.14989918]
[1730147279250,23.776884,176.09,175.98,20.0]
[1730147279460,34.92678318,176.09,175.97,8.34287675]
[1730147279756,23.776884,176.09,176.03,11.14989918]
[1730147280438,34.92678318,176.09,176.03,11.14989918]
[1730147280638,23.776884,176.09,176.04,11.14989918]
[1730147281949,110.60568318,176.09,176.03,11.14989918]
[1730147282254,99.455784,176.09,176.03,11.14989918]
[1730147282839,99.455784,176.09,176.04,11.14989918]
[1730147284350,23.776884,176.09,176.06,11.14989918]
[1730147285852,93.776884,176.09,176.04,11.14989918]
[1730147286159,93.776884,176.09,175.97,7.25938679]
[1730147286160,110.60578318,176.09,176.03,11.14989918]
[1730147286633,110.60578318,176.09,176.02,11.14989918]
[1730147287150,110.60578318,176.09,176.03,11.14989918]
[1730147287448,99.455884,176.09,176.04,11.14989918]
[1730147287754,110.60578318,176.09,176.03,11.14989918]
[1730147288259,99.455884,176.09,176.04,11.14989918]
[1730147289530,11.14989918,176.08,176.02,11.14989918]
[1730147289747,23.776884,176.0,175.97,5.88578679]
[1730147289929,23.776884,175.98,175.92,11.14989918]
[1730147290129,23.776884,175.98,175.87,0.1]
[1730147290130,23.776884,175.98,175.93,11.14989918]
[1730147290347,23.776884,175.99,175.93,11.14989918]
[1730147290654,23.776884,175.98,175.93,11.14989918]
[1730147291024,34.92678318,175.98,175.92,11.14989918]
[1730147291727,23.776884,175.98,175.93,11.14989918]
[1730147292367,23.776884,175.99,175.93,11.14989918]
[1730147293561,23.776884,175.99,175.94,11.14989918]
[1730147293725,23.776884,175.99,175.93,11.14989918]
[1730147294250,34.92678318,175.99,175.93,11.14989918]
[1730147294575,23.776884,175.99,175.94,11.14989918]
[1730147294958,34.92678318,175.99,175.93,11.14989918]
[1730147295643,29.458384,176.01,175.95,11.14989918]
[1730147295854,16.1294,176.02,175.98,11.14989918]
[1730147297256,23.776884,176.01,175.97,11.14989918]
[1730147298154,23.776884,176.01,175.9,0.1]
[1730147298357,23.776884,176.01,175.96,11.14989918]
[1730147298740,23.776884,176.01,175.9,0.1]
[1730147298933,23.776884,175.99,175.94,11.14989918]
[1730147299137,23.776884,175.99,175.97,11.14989918]
[1730147301465,23.776884,175.99,175.98,11.14989918]
[1730147304655,11.9667,176.05,175.98,11.14989918]
[1730147304866,11.9667,176.05,176.0,11.14989918]
[1730147305851,23.776884,176.04,176.0,11.14989918]
[1730147309757,23.776884,176.04,176.01,11.14989918]
[1730147312147,23.776884,176.04,176.0,11.14989918]
[1730147312444,11.14989918,176.01,175.87,1.08425966]
[1730147312647,70.0,176.02,175.94,11.14989918]
[1730147312648,34.92678318,176.0,175.94,11.14989918]
[1730147313267,40.60868318,176.0,175.94,11.14989918]
[1730147316376,23.776884,175.98,175.94,11.14989918]
[1730147317990,29.458984,175.99,175.94,11.14989918]
[1730147319097,40.60888318,175.99,175.94,11.14989918]
[1730147320282,23.776884,175.95,175.91,11.14989918]
[1730147320595,23.776884,175.95,175.92,11.14989918]
[1730147325074,23.776884,175.95,175.86,44.59959672]
[1730147325075,23.776884,175.95,175.94,11.14989918]
[1730147326385,6.458,175.99,175.94,11.14989918]
[1730147326600,6.458,175.99,175.96,11.14989918]
[1730147327895,23.776884,175.98,175.96,11.14989918]
[1730147328189,23.776884,175.98,175.97,11.14989918]
[1730147331005,23.776884,176.02,175.97,11.14989918]
[1730147331193,23.776884,176.02,175.95,44.59959672]
[1730147331194,23.776884,176.02,176.0,11.14989918]
[1730147331601,23.776884,176.02,176.01,11.14989918]
[1730147331805,23.776884,176.02,176.0,11.14989918]
[1730147339590,23.776884,176.02,176.01,11.14989918]
[1730147340216,23.776884,176.02,175.91,1.4736]
[1730147340419,29.457984,176.02,175.91,1.3736]
[1730147340715,11.14989918,176.01,175.91,1.3736]
[1730147340892,23.776884,176.0,175.95,11.14989918]
[1730147341997,23.776884,176.0,175.96,11.14989918]
[1730147342189,23.776884,176.0,175.97,11.14989918]
[1730147342513,23.776884,176.01,175.97,11.14989918]
[1730147343615,23.776884,176.02,176.0,11.14989918]
[1730147344493,23.776884,176.02,175.99,11.14989918]
[1730147345704,23.776884,176.02,175.99,5.14989918]
[1730147348997,23.776884,176.02,175.98,11.14989918]
[1730147351116,23.776884,176.02,175.99,11.14989918]
[1730147352124,23.776884,176.02,176.0,11.14989918]
[1730147352421,23.776884,176.02,175.99,11.14989918]
[1730147358531,29.458084,176.02,175.98,11.14989918]
[1730147360534,29.458084,176.02,175.99,11.14989918]
[1730147363434,23.776884,176.02,175.99,11.14989918]
[1730147364636,23.776884,176.02,175.98,11.14989918]
[1730147365239,23.776884,176.02,175.91,1.3736]
[1730147365418,23.776884,176.02,175.98,11.14989918]
[1730147366517,23.776884,176.02,175.97,11.14989918]
[1730147367433,23.776884,176.02,175.91,1.3736]
[1730147367637,23.776884,176.02,175.97,11.14989918]
[1730147368945,23.776884,176.02,175.98,11.14989918]
[1730147369252,27.66189918,176.04,176.01,11.14989918]
[1730147369253,16.512,176.04,176.01,11.14989918]
[1730147370432,23.776884,176.03,176.01,11.14989918]
[1730147373527,23.776884,176.03,175.91,1.3736]
[1730147373727,29.457784,176.03,175.99,11.14989918]
[1730147374522,23.776884,176.03,175.95,44.59959672]
[1730147374844,23.776884,176.03,175.98,11.14989918]
[1730147375048,23.776884,176.03,175.99,11.14989918]
[1730147375634,23.776884,176.03,175.98,11.14989918]
[1730147375949,23.776884,176.03,175.91,1.4736]
[1730147375950,23.776884,176.03,175.99,11.14989918]
[1730147380253,23.776884,176.03,175.98,11.14989918]
[1730147383753,23.776884,176.03,176.02,11.14989918]
[1730147384125,23.776884,176.03,176.01,11.14989918]
[1730147385147,23.776884,176.03,176.0,11.14989918]
[1730147385934,23.776884,176.03,175.93,0.1]
[1730147386258,23.776884,176.03,176.0,11.14989918]
[1730147386423,23.776884,176.03,175.98,11.14989918]
[1730147386626,40.60758318,176.03,175.91,1.3736]
[1730147386846,40.60758318,176.03,175.97,11.14989918]
[1730147387045,34.92678318,176.03,175.97,11.14989918]
[1730147387433,23.776884,176.03,175.97,11.14989918]
[1730147387630,34.92678318,176.03,175.96,11.14989918]
[1730147388055,23.776884,176.03,175.97,11.14989918]
[1730147389546,23.776884,176.03,175.91,1.3736]
[1730147389547,11.14989918,176.01,175.91,1.3736]
[1730147389740,34.92678318,176.0,175.9,6.92152146]
[1730147389957,34.92678318,176.0,175.94,11.14989918]
[1730147390638,34.92678318,176.01,175.94,11.14989918]
[1730147390867,23.776884,176.01,175.96,11.14989918]
[1730147397153,23.776884,176.01,175.98,11.14989918]
[1730147397554,23.776884,176.01,175.99,11.14989918]
[1730147398075,23.776884,176.01,175.98,11.14989918]
[1730147400454,23.776884,176.01,175.97,11.14989918]
[1730147403490,23.776884,176.01,175.9,0.9845381]
[1730147403781,23.776884,176.01,175.97,11.14989918]
[1730147406190,23.776884,176.01,175.98,11.14989918]
[1730147406774,23.776884,176.01,175.97,11.14989918]
[1730147407511,16.512,176.04,176.0,11.14989918]
[1730147407681,22.1925,176.04,176.0,11.14989918]
[1730147407865,22.1925,176.04,175.99,11.14989918]
[1730147408296,16.512,176.04,175.99,11.14989918]
[1730147409065,23.776884,176.03,175.99,11.14989918]
[1730147409268,10.02113686,176.03,175.99,11.14989918]